bitfinex/quotes_ETHUSD_20251028
["timestamp","ask_amount","ask_price","bid_price","bid_amount"]
[1761690629099,0.1248,3994.6,3994.3,2.50354766]
[1761690629495,0.1254,3996.0,3994.5,2.50344223]
[1761690629712,0.1254,3996.0,3995.4,2.50287831]
[1761690629999,0.1248,3995.8,3995.4,2.50287831]
[1761690630819,0.1248,3995.8,3995.2,2.5029474]
[1761690631118,0.1,3995.9,3995.1,2.3638]
[1761690631119,0.099,3995.4,3995.1,2.5030496]
[1761690631794,0.099,3995.4,3994.4,0.2305]
[1761690631989,0.001,3995.5,3994.5,2.6918]
[1761690632191,0.001,3995.5,3994.5,3.23438692]
[1761690632520,0.001,3995.5,3994.6,0.4528]
[1761690632821,0.001,3995.5,3995.2,2.50299981]
[1761690633120,0.001,3995.5,3995.4,2.50287831]
[1761690635205,0.001,3995.5,3995.4,2.95567831]
[1761690635540,0.001,3995.5,3995.4,3.72534514]
[1761690638706,0.001,3995.5,3995.4,4.13084914]
[1761690639319,0.001,3995.5,3995.4,5.68604914]
[1761690640810,0.001,3995.5,3995.4,7.92404914]
[1761690641848,0.001,3995.5,3995.4,8.04884914]
[1761690642339,0.001,3995.5,3995.4,5.81084914]
[1761690642552,0.001,3995.5,3995.4,8.04884914]
[1761690642744,0.001,3995.5,3995.4,5.51054514]
[1761690643245,0.001,3995.5,3995.4,5.97954514]
[1761690644657,0.001,3995.5,3995.4,6.38504914]
[1761690648253,0.001,3995.5,3995.4,7.94024914]
[1761690651557,0.001,3995.5,3995.4,7.93924914]
[1761690652634,0.001,3995.5,3995.4,8.06404914]
[1761690653235,0.001,3995.5,3995.4,4.27184914]
[1761690653438,0.001,3995.5,3995.4,6.10534514]
[1761690653638,0.001,3995.5,3995.4,8.06604914]
[1761690657070,0.001,3995.5,3995.4,5.70424914]
[1761690657264,0.001,3995.5,3995.4,7.93924914]
[1761690663013,0.001,3995.5,3995.4,11.77524912]
[1761690664203,0.001,3995.5,3995.4,9.54024912]
[1761690664411,0.001,3995.5,3995.4,11.77324912]
[1761690667016,0.001,3995.5,3995.4,11.89804912]
[1761690667309,0.001,3995.5,3995.4,16.40701333]
[1761690667808,0.001,3995.5,3995.4,9.19604912]
[1761690667975,0.001,3995.5,3995.4,11.42804912]
[1761690669176,0.001,3995.5,3995.4,7.59204914]
[1761690671121,0.1,3995.5,3995.4,5.50554514]
[1761690671284,0.001,3995.5,3995.4,5.50554514]
[1761690671658,0.001,3995.5,3995.4,0.002]
[1761690671812,7.11177987,3995.5,3995.4,0.001]
[1761690673281,2.60281566,3995.5,3995.4,0.001]
[1761690674911,4.15801566,3995.5,3995.4,0.001]
[1761690678018,17.84876666,3995.5,3995.4,0.001]
[1761690678922,20.08276666,3995.5,3995.4,0.001]
[1761690680927,2.50306625,3995.1,3995.0,0.002]
[1761690681317,2.60106625,3995.1,3995.0,0.002]
[1761690685909,0.001,3995.5,3995.0,0.002]
[1761690686110,0.1248,3995.1,3995.0,0.002]
[1761690686313,4.73506625,3995.1,3995.0,0.002]
[1761690686615,6.38826625,3995.1,3995.0,0.002]
[1761690686813,4.15626625,3995.1,3995.0,0.002]
[1761690687008,6.39026625,3995.1,3995.0,0.002]
[1761690687840,3.8872,3995.1,3995.0,0.002]
[1761690688210,6.39026625,3995.1,3995.0,0.002]
[1761690688411,4.15626625,3995.1,3995.0,0.002]
[1761690691231,2.234,3995.2,3995.0,0.002]
[1761690691432,0.001,3995.4,3995.0,0.002]
[1761690696446,0.1248,3995.1,3995.0,0.002]
[1761690696648,0.1248,3995.1,3995.0,2.50512891]
[1761690696860,0.1248,3995.1,3995.0,0.002]
[1761690698666,0.1248,3995.1,3995.0,2.50512891]
[1761690699366,0.1248,3995.1,3995.0,0.002]
[1761690700245,0.1248,3995.1,3995.0,3.51953696]
[1761690700440,0.001,3995.4,3995.3,2.50294095]
[1761690700649,0.001,3995.4,3995.3,2.62774095]
[1761690700847,0.001,3995.4,3995.3,3.09624095]
[1761690701241,0.001,3995.4,3995.3,5.32724095]
[1761690701447,0.001,3995.4,3995.3,6.16505757]
[1761690704861,0.001,3995.4,3995.3,0.1248]
[1761690705062,0.001,3995.4,3995.0,0.002]
[1761690705369,0.001,3995.4,3995.0,2.50508707]
[1761690705576,0.001,3995.4,3995.0,2.50512613]
[1761690705775,0.001,3995.4,3995.1,2.50305927]
[1761690706275,0.001,3995.4,3995.2,2.50298636]
[1761690707370,0.001,3995.4,3995.1,2.50304275]
[1761690709077,0.001,3995.4,3995.2,2.50300147]
[1761690709771,6.74371442,3996.1,3995.2,2.50300147]
[1761690709977,9.24615626,3996.1,3995.2,2.50300147]
[1761690710174,2.50264992,3995.8,3995.1,2.50305985]
[1761690710374,2.50264992,3995.8,3995.2,2.50300063]
[1761690710580,2.502586,3995.9,3995.2,2.50300063]
[1761690711380,2.50252276,3996.0,3995.3,2.50292811]
[1761690712378,2.50252276,3996.0,3995.1,4.73305668]
[1761690712560,2.50252276,3996.0,3995.4,2.50287022]
[1761690712960,2.50252276,3996.0,3995.3,2.50291703]
[1761690713959,2.50252276,3996.0,3995.4,2.50286715]
[1761690714285,2.50252276,3996.0,3995.3,2.50291724]
[1761690714980,0.1248,3995.5,3995.3,2.50291724]
[1761690715584,0.1248,3995.5,3995.4,2.50287831]
[1761690715759,0.1248,3996.1,3995.4,0.5933]
[1761690716080,0.1248,3996.1,3995.5,2.6975]
[1761690716281,0.1248,3996.1,3995.6,0.53251729]
[1761690716479,0.1248,3996.1,3995.8,2.50261585]
[1761690717053,0.1248,3996.1,3995.8,2.50261702]
[1761690717884,0.1248,3996.1,3995.7,2.50267644]
[1761690718087,0.1248,3996.1,3995.8,2.50258414]
[1761690719555,0.1248,3996.1,3995.9,2.50255685]
[1761690720183,0.1248,3996.1,3995.8,2.50260408]
[1761690720995,0.1248,3996.1,3995.9,2.50255008]
[1761690721661,0.1248,3996.1,3995.7,2.5026684]
[1761690721864,0.1248,3996.1,3995.7,2.50269039]
[1761690722100,0.1248,3996.1,3995.8,2.5026167]
[1761690722296,0.1248,3996.1,3995.9,0.4685]
[1761690722499,0.1248,3996.1,3996.0,2.5025025]
[1761690722702,0.1248,3996.1,3996.0,2.52752752]
[1761690723029,10.26,3997.9,3996.0,2.1485]
[1761690723030,0.1248,3996.9,3996.0,2.1485]
[1761690723297,0.1248,3996.9,3996.8,2.5020016]
[1761690723799,0.1248,3996.9,3996.8,2.9705016]
[1761690724304,0.1248,3996.9,3996.3,0.1248]
[1761690724470,7.91427398,3997.5,3996.5,2.50218233]
[1761690724670,4.21428752,3998.3,3996.6,0.4685]
[1761690724871,4.21428752,3998.3,3996.8,2.50200134]
[1761690724872,2.50150828,3997.6,3996.8,2.50200134]
[1761690725074,2.227,3998.2,3996.9,0.02501939]
[1761690725312,2.227,3998.2,3996.9,2.0237]
[1761690725610,0.158,3998.3,3997.7,2.50138878]
[1761690725773,0.158,3998.3,3997.8,2.50133255]
[1761690725973,0.158,3998.3,3997.8,2.96983255]
[1761690726204,0.158,3998.3,3997.9,2.50131028]
[1761690726403,0.158,3998.3,3997.8,2.96986359]
[1761690726610,0.158,3998.3,3997.7,2.229]
[1761690726984,2.65911767,3998.3,3997.7,2.229]
[1761690727190,0.26601177,3998.2,3997.7,2.229]
[1761690727698,0.26601177,3998.2,3997.3,0.228]
[1761690728018,2.50220372,3998.1,3997.4,2.228]
[1761690728315,0.001,3997.7,3997.4,4.72961977]
[1761690728477,0.001,3997.7,3997.5,2.50155702]
[1761690728808,0.001,3997.7,3997.4,4.72960694]
[1761690729014,0.001,3997.7,3997.4,2.228]
[1761690729194,0.001,3997.7,3997.4,4.72961565]
[1761690729392,0.001,3997.7,3997.4,2.228]
[1761690729905,0.001,3997.7,3997.3,2.72967942]
[1761690730112,0.001,3997.7,3997.4,2.228]
[1761690732531,0.001,3997.7,3996.4,0.75121603]
[1761690732532,2.50195345,3996.9,3996.4,2.227]
[1761690732815,0.25019534,3996.8,3996.4,4.72919923]
[1761690732994,2.50196496,3996.9,3996.4,2.227]
[1761690733595,2.50188305,3997.0,3996.4,2.227]
[1761690734221,2.5019442,3996.9,3996.4,2.227]
[1761690734467,0.1248,3996.7,3996.4,2.227]
[1761690736351,0.1248,3996.7,3996.4,4.72924977]
[1761690736924,0.1248,3996.7,3996.4,2.227]
[1761690737352,0.1248,3996.7,3996.4,4.72923753]
[1761690738086,0.1248,3996.7,3996.4,2.227]
[1761690738591,0.1248,3996.7,3996.0,0.1248]
[1761690738902,0.1248,3996.3,3995.3,0.002]
[1761690739099,5.41270713,3996.5,3995.3,0.002]
[1761690739100,0.1248,3995.9,3995.3,0.002]
[1761690739251,0.1248,3995.7,3995.4,2.227]
[1761690739586,0.38754119,3995.7,3995.3,0.002]
[1761690739745,0.1248,3995.4,3995.3,0.002]
[1761690751901,2.62767831,3995.4,3995.3,0.002]
[1761690752076,0.1248,3995.4,3995.3,0.002]
[1761690753346,4.73087831,3995.4,3995.3,0.002]
[1761690753504,2.50306625,3995.1,3995.0,0.002]
[1761690753700,9.47097338,3995.1,3995.0,0.002]
[1761690754032,9.47197338,3995.1,3995.0,0.002]
[1761690755550,11.69897338,3995.1,3995.0,0.002]
[1761690756039,9.47097338,3995.1,3995.0,0.002]
[1761690756356,2.50269727,3995.7,3995.0,0.002]
[1761690756357,2.227,3996.7,3995.0,0.4367]
[1761690756506,0.001,3996.8,3996.6,0.2142]
[1761690756699,0.001,3996.8,3996.6,0.6489]
[1761690756936,0.001,3996.8,3996.6,0.2142]
[1761690757152,0.25128872,3996.8,3996.6,0.2142]
[1761690757301,0.001,3996.8,3996.7,0.4347]
[1761690759007,2.239,3996.8,3995.9,0.2142]
[1761690759422,4.74100878,3996.8,3996.0,2.50249797]
[1761690760029,4.74100878,3996.8,3996.0,2.50250228]
[1761690760737,2.239,3996.8,3995.9,0.6489]
[1761690761137,4.74104918,3996.8,3995.9,0.6489]
[1761690761442,4.74104918,3996.8,3996.0,2.50249168]
[1761690762267,2.239,3996.8,3996.0,0.4303]
[1761690762422,2.5020642,3996.7,3996.0,0.4303]
[1761690762964,2.50214743,3996.6,3996.0,0.4303]
[1761690763163,2.239,3996.8,3995.6,0.4303]
[1761690763331,0.1248,3996.2,3995.7,2.93299014]
[1761690763531,0.1248,3996.2,3995.8,2.50262255]
[1761690763718,0.1248,3996.2,3996.1,0.2264]
[1761690764364,0.1248,3996.2,3995.9,0.6567]
[1761690764854,0.1248,3996.2,3996.0,0.4303]
[1761690765228,0.1248,3996.2,3995.9,2.72894319]
[1761690765427,0.1248,3996.2,3995.9,2.50254319]
[1761690765628,0.1248,3996.2,3995.8,2.50260871]
[1761690766951,0.1248,3996.2,3995.9,2.50255996]
[1761690767455,0.1248,3996.2,3995.8,2.5026249]
[1761690767860,0.1248,3996.2,3995.8,2.9329249]
[1761690768355,0.1248,3996.2,3995.9,2.50255987]
[1761690769654,0.1248,3996.2,3996.0,2.50249212]
[1761690769858,0.1248,3996.2,3995.8,2.93291209]
[1761690770660,0.1248,3996.2,3995.9,2.50255809]
[1761690771458,0.1248,3996.2,3996.0,2.50249378]
[1761690771628,0.001,3996.8,3996.0,2.73551063]
[1761690771827,0.001,3996.8,3996.3,2.50229407]
[1761690772048,0.001,3996.8,3995.4,0.75135337]
[1761690772253,2.50303544,3996.8,3996.0,2.50248441]
[1761690772556,0.001,3996.7,3995.4,0.4303]
[1761690772758,0.001,3996.7,3995.3,0.002]
[1761690772759,2.50229304,3996.4,3995.5,2.236]
[1761690772960,2.50229304,3996.4,3995.6,2.50273902]
[1761690773165,1.5562,3996.8,3995.6,0.4303]
[1761690773462,1.5552,3996.6,3995.9,2.50256335]
[1761690773643,2.50212912,3996.6,3995.9,2.50256335]
[1761690773833,2.50207361,3996.7,3995.9,2.50256335]
[1761690774039,4.05736767,3996.6,3995.9,2.50256335]
[1761690774441,0.001,3996.8,3996.3,2.50230282]
[1761690774739,0.001,3996.8,3996.3,2.93260282]
[1761690775433,0.001,3996.8,3996.3,2.50230282]
[1761690776533,0.001,3996.8,3996.3,2.93260282]
[1761690777073,0.001,3996.8,3996.3,2.50230282]
[1761690778343,0.001,3996.8,3996.0,2.236]
[1761690778575,1.5552,3996.6,3996.0,2.50249377]
[1761690778769,1.5552,3996.6,3996.1,2.235]
[1761690778973,0.002,3996.8,3996.1,2.235]
[1761690779268,1.5572,3996.8,3996.2,2.5023741]
[1761690779777,1.5562,3996.8,3996.2,2.5023741]
[1761690780074,1.5562,3996.8,3996.1,2.235]
[1761690780075,0.002,3996.8,3996.1,2.235]
[1761690780275,1.5552,3996.6,3996.1,2.235]
[1761690780778,0.001,3996.8,3996.0,2.50249813]
[1761690780779,0.001,3996.5,3996.0,2.234]
[1761690781071,2.50254835,3996.0,3995.3,0.002]
[1761690781276,3.7892,3996.0,3995.3,0.002]
[1761690781587,2.50287831,3995.4,3995.3,0.002]
[1761690781944,8.57171402,3995.4,3995.3,0.002]
[1761690783298,4.05907831,3995.4,3995.3,0.002]
[1761690783957,4.05807831,3995.4,3995.3,0.002]
[1761690784593,4.05907831,3995.4,3995.3,0.002]
[1761690786262,4.05807831,3995.4,3995.3,0.002]
[1761690786684,4.05907831,3995.4,3995.3,0.002]
[1761690787464,4.05807831,3995.4,3995.3,0.002]
[1761690789172,1.5552,3995.4,3995.3,0.002]
[1761690789573,4.05907831,3995.4,3995.3,0.002]
[1761690789977,4.05807831,3995.4,3995.3,0.002]
[1761690790186,1.5552,3995.4,3995.3,0.002]
[1761690794539,2.5022801,3996.4,3995.3,0.002]
[1761690794540,0.001,3996.8,3995.3,0.002]
[1761690794744,0.1248,3995.6,3995.4,0.4618]
[1761690795128,0.1248,3995.6,3995.5,2.50281566]
[1761690795347,0.1248,3995.6,3995.5,2.96461566]
[1761690796025,0.1248,3995.6,3995.4,2.82319518]
[1761690796026,0.1248,3995.6,3995.4,2.82319758]
[1761690796460,0.1248,3995.6,3995.5,2.96461566]
[1761690796639,0.1248,3996.0,3995.9,2.50256512]
[1761690796836,0.001,3996.8,3996.4,2.50223648]
[1761690797046,0.1248,3996.5,3996.0,0.4618]
[1761690797440,0.1248,3996.5,3996.2,2.50237527]
[1761690797839,0.1248,3996.5,3996.2,2.96417527]
[1761690798038,0.1248,3996.5,3996.1,0.2365]
[1761690798243,1.68,3996.5,3995.8,3.32567224]
[1761690798441,1.68,3996.5,3995.8,2.86387224]
[1761690798637,1.68,3996.5,3995.9,2.5025425]
[1761690798839,2.50218941,3996.5,3995.8,0.2365]
[1761690799147,0.1248,3996.0,3995.8,2.50261719]
[1761690799662,0.1248,3996.0,3995.9,2.50256512]
[1761690801345,0.1248,3996.0,3995.9,2.96436512]
[1761690803077,0.1248,3996.0,3995.9,3.51107021]
[1761690803276,0.1248,3996.4,3996.3,2.50231464]
[1761690803646,0.1248,3996.4,3996.3,2.96411464]
[1761690806446,0.1248,3996.4,3996.3,0.4618]
[1761690806661,0.1248,3996.4,3996.2,0.2365]
[1761690806858,0.1248,3996.4,3996.0,2.50248868]
[1761690807181,0.1248,3996.4,3996.0,0.4618]
[1761690807387,0.1248,3996.4,3996.1,2.50241355]
[1761690807674,0.1248,3996.4,3996.1,2.96421355]
[1761690808177,0.1248,3996.4,3996.2,2.50234143]
[1761690808875,0.1248,3996.4,3996.1,2.96421997]
[1761690809593,0.1248,3996.4,3996.2,2.50236902]
[1761690811599,4.63401042,3996.4,3995.9,0.0186288]
[1761690811896,0.1248,3996.1,3995.9,0.0186288]
[1761690812097,0.1248,3996.1,3996.0,2.5025025]
[1761690812698,0.1248,3996.1,3996.0,2.9643025]
[1761690813085,0.001,3996.5,3996.1,2.50243987]
[1761690813401,0.001,3996.5,3996.4,0.2365]
[1761690813772,0.001,3996.5,3996.4,0.6983]
[1761690813973,0.001,3996.5,3996.4,3.20055202]
[1761690816907,0.1248,3996.4,3996.1,2.231]
[1761690817199,0.1248,3996.4,3996.1,2.6928]
[1761690817368,0.1248,3996.4,3996.3,2.50231464]
[1761690818301,0.1248,3996.4,3996.3,2.96411464]
[1761690818700,0.1258,3996.4,3996.3,2.96411464]
[1761690818911,0.1258,3996.4,3996.2,2.50235943]
[1761690819316,0.1258,3996.4,3996.3,2.50231464]
[1761690820217,0.1258,3996.4,3996.2,2.96416448]
[1761690820386,0.1258,3996.4,3996.2,2.50236448]
[1761690821176,0.1258,3996.4,3996.2,2.95166448]
[1761690821379,2.5025025,3996.0,3995.9,0.0186288]
[1761690821575,6.53905275,3996.0,3995.9,0.0186288]
[1761690821774,6.54005275,3996.0,3995.9,0.0186288]
[1761690823311,1.5552,3996.0,3995.9,0.0186288]
[1761690828031,1.5552,3996.0,3995.9,2.52119392]
[1761690828396,1.5552,3996.0,3995.9,2.97049392]
[1761690829304,1.5552,3996.0,3995.9,0.4679288]
[1761690829499,1.5552,3996.0,3995.9,0.0186288]
[1761690829827,1.5552,3996.0,3995.9,2.97049392]
[1761690830005,0.001,3996.4,3995.9,2.97049392]
[1761690830712,0.001,3996.4,3995.9,2.52119392]
[1761690831014,0.001,3996.4,3996.0,0.4493]
[1761690837038,0.001,3996.4,3996.1,0.675]
[1761690837238,0.1248,3996.2,3996.1,0.675]
[1761690838018,0.1248,3996.2,3996.1,3.17743987]
[1761690839532,0.001,3996.4,3996.1,0.675]
[1761690839740,0.001,3996.4,3996.3,2.50231464]
[1761690840119,0.001,3996.4,3996.3,2.95161464]
[1761690840912,0.001,3996.4,3996.1,0.2257]
[1761690841103,0.001,3996.4,3995.9,0.0186288]
[1761690841309,0.001,3996.4,3996.0,2.23]
[1761690841627,0.001,3996.4,3996.0,4.73246302]
[1761690841827,0.001,3996.4,3996.0,5.18176302]
[1761690842238,0.001,3996.4,3995.9,0.0186288]
[1761690842239,2.5025025,3996.0,3995.9,0.0186288]
[1761690842539,4.0577025,3996.0,3995.9,0.0186288]
[1761690843932,4.0587025,3996.0,3995.9,0.0186288]
[1761690844538,6.2877025,3996.0,3995.9,0.0186288]
[1761690846361,3.7842,3996.0,3995.9,0.0186288]
[1761690846556,6.2867025,3996.0,3995.9,0.0186288]
[1761690846966,6.2877025,3996.0,3995.9,0.0186288]
[1761690847360,3.7852,3996.0,3995.9,0.0186288]
[1761690847655,6.2867025,3996.0,3995.9,0.0186288]
[1761690848422,3.7842,3996.0,3995.9,0.0186288]
[1761690848959,0.001,3996.4,3995.9,0.0186288]
[1761690849122,4.98078488,3996.3,3995.9,0.0186288]
[1761690849322,1.5552,3996.2,3995.9,0.0186288]
[1761690850437,0.25042193,3996.3,3995.9,0.0186288]
[1761690850636,0.001,3996.4,3996.3,2.50231464]
[1761690850843,0.001,3996.4,3996.2,2.50236578]
[1761690851046,0.001,3996.4,3996.3,2.50231464]
[1761690851244,0.001,3996.4,3996.3,2.93141464]
[1761690853664,0.001,3996.4,3996.3,3.4974372]
[1761690858314,0.001,3996.4,3996.3,5.7254372]
[1761690858465,0.001,3996.4,3996.3,5.8502372]
[1761690858670,0.001,3996.4,3996.3,5.2963372]
[1761690858855,0.001,3996.4,3996.3,5.7254372]
[1761690865312,0.001,3996.4,3996.3,5.9750372]
[1761690868291,0.001,3996.4,3996.3,7.9357412]
[1761690869628,0.001,3996.9,3996.8,2.5020016]
[1761690869830,0.001,3996.9,3996.8,10.39280163]
[1761690870018,0.001,3996.9,3996.8,10.94670163]
[1761690870419,0.001,3996.9,3996.8,11.35220563]
[1761690870825,0.001,3996.9,3996.8,11.47700563]
[1761690875332,0.001,3996.9,3996.8,6.06440576]
[1761690875631,0.001,3996.9,3996.8,5.22880176]
[1761690876203,0.001,3996.9,3996.8,4.9786016]
[1761690876409,0.001,3996.9,3996.8,5.4077016]
[1761690878236,0.001,3996.9,3996.8,4.8538016]
[1761690880311,0.001,3996.9,3996.8,4.7290016]
[1761690881033,0.001,3996.9,3996.6,0.2496]
[1761690881339,0.001,3996.9,3996.8,2.5020016]
[1761690881542,0.001,3996.9,3996.7,2.227]
[1761690881543,0.1248,3996.8,3996.7,2.227]
[1761690882321,0.1248,3996.8,3996.5,2.50217592]
[1761690882539,0.1248,3996.8,3996.4,2.227]
[1761690883044,0.1248,3996.8,3996.5,2.50218941]
[1761690883346,0.1248,3996.8,3996.6,2.50211605]
[1761690883552,0.1248,3996.8,3996.4,2.227]
[1761690883553,0.1248,3996.8,3996.5,2.50217529]
[1761690884862,0.1248,3996.8,3996.4,4.72919244]
[1761690885047,0.1248,3996.8,3996.5,2.50216941]
[1761690887569,0.1248,3996.8,3996.5,2.50416941]
[1761690888274,0.1248,3996.8,3996.5,0.002]
[1761690888479,0.059,3996.8,3996.5,2.229]
[1761690888679,0.001,3996.9,3996.5,2.229]
[1761690888977,0.059,3996.8,3996.5,0.002]
[1761690889279,2.50208202,3996.7,3996.5,0.002]
[1761690889466,0.2562082,3996.6,3996.5,0.002]
[1761690890783,2.50204519,3996.8,3996.5,0.002]
[1761690891148,0.059,3996.7,3996.5,0.002]
[1761690893380,0.001,3996.9,3996.6,2.50210633]
[1761690894380,0.001,3996.9,3996.7,2.94055836]
[1761690894685,0.001,3996.9,3996.7,0.4385]
[1761690895067,0.1248,3996.7,3996.6,2.50211747]
[1761690895268,0.001,3996.9,3996.8,2.5020016]
[1761690895484,0.001,3996.9,3996.8,4.7290016]
[1761690895688,0.001,3996.9,3996.8,5.1675016]
[1761690896189,0.001,3996.9,3996.8,2.227]
[1761690899567,0.001,3996.9,3996.7,4.72906168]
[1761690900009,0.001,3996.9,3996.7,2.227]
[1761690900214,0.001,3996.9,3996.5,0.002]
[1761690900414,0.059,3996.8,3996.5,0.002]
[1761690900611,0.25619795,3996.7,3996.5,0.002]
[1761690900924,2.50297953,3996.9,3996.5,0.002]
[1761690900925,0.001,3996.9,3996.5,0.002]
[1761690901226,2.56105639,3996.8,3996.5,0.002]
[1761690901519,0.059,3996.7,3996.5,0.002]
[1761690901893,8.56664311,3996.6,3996.5,0.002]
[1761690902091,10.85264311,3996.6,3996.5,0.002]
[1761690905598,8.56664311,3996.6,3996.5,0.002]
[1761690905802,10.79364311,3996.6,3996.5,0.002]
[1761690906196,8.62564311,3996.6,3996.5,0.002]
[1761690906406,10.85264311,3996.6,3996.5,0.002]
[1761690908811,11.25814711,3996.6,3996.5,0.002]
[1761690909154,23.10222311,3996.6,3996.5,0.002]
[1761690909429,4.46308125,3996.2,3996.1,0.002]
[1761690909634,11.19939756,3996.2,3996.1,0.002]
[1761690909817,11.25839756,3996.2,3996.1,0.002]
[1761690913851,15.76771387,3996.2,3996.1,0.002]
[1761690916828,18.40271387,3996.2,3996.1,0.002]
[1761690917822,5.5430065,3996.0,3995.9,0.0186288]
[1761690918027,13.9966245,3996.0,3995.9,0.0186288]
[1761690918222,14.0556245,3996.0,3995.9,0.0186288]
[1761690918927,16.3767415,3996.0,3995.9,0.0186288]
[1761690919865,17.5823115,3996.0,3995.9,0.0186288]
[1761690920061,2.90813175,3995.8,3995.3,0.002]
[1761690920261,17.69314406,3995.8,3995.3,0.002]
[1761690920428,17.75214406,3995.8,3995.3,0.002]
[1761690920634,15.94308406,3995.8,3995.3,0.002]
[1761690920834,11.25864806,3995.8,3995.3,0.002]
[1761690921035,16.98654906,3995.8,3995.3,0.002]
[1761690921948,22.40740506,3995.8,3995.3,0.002]
[1761690922267,17.36193806,3995.8,3995.3,0.002]
[1761690922753,15.59217906,3995.8,3995.3,0.002]
[1761690922953,11.25864806,3995.8,3995.3,0.002]
[1761690924352,11.25864806,3995.8,3995.6,0.002]
[1761690926968,9.32533175,3995.8,3995.6,0.002]
[1761690927172,13.83464806,3995.8,3995.6,0.002]
[1761690928271,13.89364806,3995.8,3995.6,0.002]
[1761690929187,13.83464806,3995.8,3995.6,0.002]
[1761690944893,19.63168806,3995.8,3995.6,0.002]
[1761690945093,25.73772406,3995.8,3995.6,0.002]
[1761690945692,7.22319439,3995.7,3995.6,1e-08]
[1761690945939,4.46377025,3995.1,3995.0,0.002]
[1761690946224,15.70940287,3995.1,3995.0,0.002]
[1761690946922,11.20008656,3995.1,3995.0,0.002]
[1761690947719,15.70940287,3995.1,3995.0,0.002]
[1761690950056,11.20008656,3995.1,3995.0,0.002]
[1761690954757,15.75937356,3995.1,3995.0,0.002]
[1761690955316,20.32768987,3995.1,3995.0,0.002]
[1761690955964,15.70940287,3995.1,3995.0,0.002]
[1761690956112,11.20008656,3995.1,3995.0,0.002]
[1761690957262,25.67916256,3995.1,3994.9,1e-08]
[1761690957413,11.29105191,3995.0,3994.9,1e-08]
[1761690957618,11.09844991,3995.0,3994.9,1e-08]
[1761690958258,4.46383291,3995.0,3994.9,1e-08]
[1761690958464,13.65080391,3995.0,3994.9,1e-08]
[1761690958942,16.34480391,3995.0,3994.9,1e-08]
[1761690959449,16.30809689,3994.7,3994.5,0.002]
[1761690959651,23.0444132,3994.7,3994.5,0.002]
[1761690959876,23.1034132,3994.7,3994.5,0.002]
[1761690960022,25.7384132,3994.7,3994.5,0.002]
[1761690960227,25.83869335,3994.7,3994.5,0.002]
[1761690960426,25.83869335,3994.7,3993.7,0.002]
[1761690960427,2.50388101,3993.8,3993.7,0.002]
[1761690960766,6.69426911,3993.5,3993.4,1e-08]
[1761690960935,6.28626911,3993.5,3993.4,1e-08]
[1761690961254,10.79458542,3993.5,3993.4,1e-08]
[1761690961549,10.79458542,3993.5,3993.4,0.42900001]
[1761690962319,11.20008942,3993.5,3993.4,0.42900001]
[1761690962650,11.20008942,3993.5,3993.4,1e-08]
[1761690963219,23.04416542,3993.5,3993.4,1e-08]
[1761690963419,24.01832761,3993.5,3993.4,1e-08]
[1761690965156,2.50457084,3992.7,3992.6,0.002]
[1761690965359,12.11675334,3992.7,3992.6,0.002]
[1761690966768,23.96082934,3992.7,3992.6,0.002]
[1761690966973,16.90692334,3992.7,3992.6,0.002]
[1761690967672,16.96592334,3992.7,3992.6,0.002]
[1761690967862,24.01982934,3992.7,3992.6,0.002]
[1761690968045,23.96082934,3992.7,3992.6,0.002]
[1761690975799,12.11675334,3992.7,3992.6,0.002]
[1761690976120,23.96082934,3992.7,3992.6,0.002]
[1761690977712,23.96082934,3992.7,3992.3,0.002]
[1761690977713,2.91026304,3992.4,3992.3,0.002]
[1761690977996,15.16604378,3992.3,3991.9,0.002]
[1761690978161,20.59052228,3992.3,3991.9,0.002]
[1761690978366,21.85888028,3992.3,3991.9,0.002]
[1761690978602,10.01480428,3992.3,3991.9,0.002]
[1761690978834,14.25088028,3992.3,3992.0,0.4323]
[1761690979414,18.01965828,3992.3,3992.0,0.4323]
[1761690980421,17.88962628,3992.3,3992.0,0.4323]
[1761690980940,4.46552578,3992.3,3992.2,0.4343]
[1761690981118,12.11700428,3992.3,3992.2,0.4343]
[1761690981836,12.11700428,3992.3,3992.2,0.002]
[1761690982804,12.11700428,3992.3,3992.2,0.4343]
[1761690983240,12.11700428,3992.3,3992.2,0.002]
[1761690984034,12.11700428,3992.3,3992.2,0.4343]
[1761690986643,12.11700428,3992.3,3992.2,0.002]
[1761690986843,12.11700428,3992.3,3992.2,0.4343]
[1761690988862,6.69252578,3992.3,3992.2,0.4343]
[1761690989032,12.11700428,3992.3,3992.2,0.4343]
[1761690991438,14.75459002,3992.0,3991.9,0.002]
[1761690991634,13.31192402,3992.0,3991.9,0.002]
[1761690991951,6.69271402,3992.0,3991.9,0.002]
[1761690992159,6.69271402,3992.0,3991.9,0.4343]
[1761690994942,6.28721002,3992.0,3991.9,0.4343]
[1761690996671,6.28721002,3992.0,3991.9,0.002]
[1761690998284,6.69271402,3992.0,3991.9,0.002]
[1761690999555,6.69271402,3992.0,3991.9,0.4343]
[1761691000443,6.69271402,3992.0,3991.9,0.4707]
[1761691001173,6.69271402,3992.0,3991.9,0.002]
[1761691012104,6.69271402,3992.0,3991.9,0.4707]
[1761691019740,6.69271402,3992.0,3991.9,0.002]
[1761691022429,6.69271402,3992.0,3988.9,2.50695177]
[1761691022430,10.49357212,3991.2,3990.5,0.2175]
[1761691022613,12.71857212,3991.2,3990.5,0.2175]
[1761691022913,12.71857212,3991.2,3990.6,0.4687]
[1761691023117,6.69121612,3991.2,3990.5,0.2175]